bitfinex/quotes_SOLUSD_20240714
["timestamp","ask_amount","ask_price","bid_price","bid_amount"]
[1720999115353,0.04010775,148.33,148.32,15.31]
[1720999115553,0.04010775,148.33,148.32,60.31]
[1720999115750,0.04010775,148.33,148.32,45.0]
[1720999116059,0.04010775,148.33,148.32,15.31]
[1720999116253,0.04010775,148.33,148.32,60.31]
[1720999117255,0.04010775,148.33,148.32,45.0]
[1720999117454,0.04010775,148.33,148.32,15.31]
[1720999117649,0.04010775,148.33,148.32,60.31]
[1720999117884,0.04010775,148.33,148.29,10.0]
[1720999118178,0.04010775,148.33,148.31,15.31]
[1720999118354,0.04010775,148.33,148.32,1.34812005]
[1720999118556,0.04010775,148.33,148.31,15.31]
[1720999120165,0.04010775,148.33,148.3,45.0]
[1720999120462,0.04010775,148.33,148.31,15.31]
[1720999120669,0.04010775,148.33,148.32,45.0]
[1720999121583,0.04010775,148.33,148.32,60.31]
[1720999121789,0.04010775,148.33,148.32,45.0]
[1720999121990,0.04010775,148.33,148.28,23.46867872]
[1720999122278,0.04010775,148.33,148.3,15.31]
[1720999122785,0.04010775,148.33,148.3,16.6581621]
[1720999122983,0.04010775,148.33,148.3,15.31]
[1720999124791,0.04010775,148.33,148.31,15.31]
[1720999125864,0.04010775,148.33,148.32,1.34812096]
[1720999126065,0.04010775,148.33,148.31,15.31]
[1720999126469,0.04010775,148.33,148.32,45.0]
[1720999127777,0.04010775,148.33,148.29,10.0]
[1720999127977,0.04010775,148.33,148.31,15.31]
[1720999128171,0.04010775,148.33,148.32,1.34807905]
[1720999128375,0.04010775,148.33,148.32,61.65807905]
[1720999128589,0.04010775,148.33,148.32,60.31]
[1720999128774,0.04010775,148.33,148.32,45.0]
[1720999129091,0.04010775,148.33,148.29,30.31]
[1720999129092,0.04010775,148.33,148.31,15.31]
[1720999129796,0.04010775,148.33,148.29,30.31]
[1720999130088,0.04010775,148.33,148.31,15.31]
[1720999130585,0.04010775,148.33,148.3,45.0]
[1720999130793,0.04010775,148.33,148.31,15.31]
[1720999131097,0.04010775,148.33,148.28,43.7950768]
[1720999131280,0.04010775,148.33,148.3,15.31]
[1720999132492,0.04010775,148.33,148.31,45.0]
[1720999133584,0.04010775,148.33,148.31,55.0]
[1720999133796,0.04010775,148.33,148.32,15.31]
[1720999134090,0.04010775,148.33,148.32,60.31]
[1720999135269,0.04010775,148.33,148.32,45.0]
[1720999136095,0.04010775,148.33,148.32,60.31]
[1720999137097,0.04010775,148.33,148.29,10.0]
[1720999137301,0.04010775,148.33,148.3,60.31]
[1720999137687,0.04010775,148.33,148.31,15.31]
[1720999137992,0.04010775,148.33,148.32,45.0]
[1720999139478,0.04010775,148.33,148.31,15.31]
[1720999139798,0.04010775,148.33,148.29,7.04286992]
[1720999140101,0.04010775,148.33,148.3,60.31]
[1720999141403,0.04010775,148.33,148.31,15.31]
[1720999141595,0.04010775,148.33,148.3,60.31]
[1720999142383,0.04010775,148.33,148.3,65.31]
[1720999142585,0.04010775,148.33,148.32,15.31]
[1720999142810,0.04010775,148.33,148.32,60.31]
[1720999143809,0.04010775,148.33,148.32,70.31]
[1720999143977,0.4831782,148.34,148.32,189.71692072]
[1720999144180,15.31,148.44,148.36,10.0]
[1720999144378,15.31,148.44,148.39,15.31]
[1720999144577,15.31,148.44,148.4,1.3474422]
[1720999145075,15.562,148.45,148.33,35.7463]
[1720999145376,16.4882,148.43,148.29,17.04286992]
[1720999145597,15.31,148.38,148.3,10.0]
[1720999145801,6.7378,148.42,148.33,15.31]
[1720999146079,15.31,148.38,148.33,15.31]
[1720999146289,15.31,148.37,148.29,17.04286992]
[1720999146506,31.7982,148.38,148.33,15.31]
[1720999147312,16.4882,148.38,148.34,15.31]
[1720999148203,16.4882,148.38,148.33,15.31]
[1720999148204,15.31,148.37,148.33,15.31]
[1720999148398,15.31,148.37,148.32,15.31]
[1720999148799,15.31,148.36,148.32,15.31]
[1720999149002,15.31,148.36,148.3,7.04462053]
[1720999149300,16.4882,148.38,148.31,15.31]
[1720999149802,15.31,148.37,148.32,15.31]
[1720999150879,15.31,148.37,148.33,1.34817796]
[1720999151079,15.31,148.37,148.32,15.31]
[1720999151510,15.31,148.37,148.33,1.34817808]
[1720999151895,15.31,148.37,148.32,15.31]
[1720999153797,16.4882,148.38,148.32,15.31]
[1720999154001,15.31,148.37,148.33,1.34818019]
[1720999154411,15.31,148.37,148.32,15.31]
[1720999155101,15.31,148.36,148.31,15.31]
[1720999155703,15.31,148.36,148.32,1.34817972]
[1720999156219,15.31,148.36,148.31,15.31]
[1720999156828,15.31,148.33,148.3,7.04462053]
[1720999156999,15.31,148.31,148.3,7.04462053]
[1720999157194,15.0985,148.33,148.25,15.31]
[1720999157515,30.4085,148.33,148.28,15.31]
[1720999157722,15.0985,148.33,148.29,15.31]
[1720999157929,30.4085,148.33,148.28,15.31]
[1720999158099,15.31,148.32,148.27,15.31]
[1720999158820,15.31,148.32,148.26,7.04903449]
[1720999159000,15.31,148.32,148.27,15.31]
[1720999159201,15.31,148.32,148.26,7.04903449]
[1720999159399,15.31,148.31,148.26,22.35903449]
[1720999159601,15.31,148.31,148.26,7.04903449]
[1720999160120,15.31,148.31,148.26,22.35903449]
[1720999160618,15.31,148.31,148.26,7.04903449]
[1720999160822,15.31,148.31,148.26,22.35903449]
[1720999162126,15.31,148.31,148.26,7.04903449]
[1720999162298,15.31,148.31,148.26,22.35903449]
[1720999163116,6.7422,148.32,148.26,7.04903449]
[1720999163299,15.31,148.28,148.26,7.04903449]
[1720999163494,15.31,148.29,148.26,7.04903449]
[1720999164101,15.0985,148.33,148.26,22.35903449]
[1720999164413,15.31,148.31,148.27,15.31]
[1720999164616,15.31,148.31,148.26,22.35903449]
[1720999164820,15.31,148.3,148.26,7.04903449]
[1720999165207,15.31,148.31,148.27,15.31]
[1720999165517,15.31,148.32,148.27,15.31]
[1720999165716,15.0985,148.33,148.27,15.31]
[1720999165915,30.4085,148.33,148.28,16.65855786]
[1720999166121,30.4085,148.33,148.28,15.31]
[1720999166122,15.0985,148.33,148.28,15.31]
[1720999166311,15.0985,148.33,148.26,7.04903449]
[1720999166312,6.7399,148.37,148.29,1.34838868]
[1720999166516,15.31,148.35,148.3,16.65830588]
[1720999167016,15.31,148.34,148.29,15.31]
[1720999167196,15.31,148.34,148.26,7.04903449]
[1720999167392,15.31,148.34,148.29,15.31]
[1720999167597,15.31,148.33,148.28,15.31]
[1720999167793,15.31,148.33,148.27,45.0]
[1720999168097,15.31,148.33,148.28,15.31]
[1720999168299,15.31,148.33,148.29,15.31]
[1720999168725,6.74,148.37,148.3,15.31]
[1720999169026,15.31,148.35,148.3,15.31]
[1720999169795,23.1729,148.38,148.3,15.31]
[1720999170004,15.31,148.36,148.31,15.31]
[1720999170234,16.4334,148.38,148.32,15.31]
[1720999170522,15.31,148.37,148.32,15.31]
[1720999170698,16.4334,148.38,148.33,1.3480781]
[1720999171123,31.7434,148.38,148.34,15.31]
[1720999171418,31.7434,148.38,148.33,16.6580781]
[1720999171622,31.7434,148.38,148.33,15.31]
[1720999172013,16.4334,148.38,148.34,15.31]
[1720999172222,15.31,148.39,148.34,16.6579885]
[1720999173121,15.31,148.39,148.34,15.31]
[1720999173417,15.31,148.39,148.35,1.34789724]
[1720999173628,15.31,148.39,148.34,15.31]
[1720999174313,6.7382,148.41,148.35,15.31]
[1720999174523,15.31,148.39,148.34,15.31]
[1720999175041,15.31,148.39,148.3,26.05]
[1720999175330,15.31,148.37,148.33,15.31]
[1720999175501,15.31,148.38,148.34,15.31]
[1720999175910,15.31,148.38,148.35,1.34799987]
[1720999176111,15.31,148.39,148.34,15.31]
[1720999176727,23.0386,148.42,148.36,15.31]
[1720999176921,23.0386,148.42,148.37,1.34784426]
[1720999177124,15.31,148.41,148.37,1.34784426]
[1720999177728,23.0386,148.42,148.38,15.31]
[1720999177729,16.3006,148.42,148.38,15.31]
[1720999177937,6.7363,148.45,148.38,15.31]
[1720999178142,6.7363,148.45,148.39,15.31]
[1720999178328,15.31,148.44,148.39,15.31]
[1720999178914,15.31,148.44,148.4,1.34756258]
[1720999179216,6.7363,148.45,148.4,1.34756258]
[1720999179419,23.0365,148.46,148.36,25.2074]
[1720999179622,15.31,148.45,148.4,15.31]
[1720999179933,15.31,148.44,148.39,15.31]
[1720999180112,15.31,148.44,148.4,15.31]
[1720999180709,16.3006,148.46,148.41,16.65745453]
[1720999181032,16.3006,148.46,148.43,15.31]
[1720999181216,15.31,148.47,148.42,15.31]
[1720999181533,15.31,148.48,148.43,15.31]
[1720999181744,15.31,148.47,148.38,10.0]
[1720999181911,0.8453082,148.49,148.4,20.0]
[1720999182117,16.1553082,148.49,148.44,15.31]
[1720999182354,0.8453082,148.49,148.44,15.31]
[1720999182633,15.31,148.48,148.44,15.31]
[1720999183540,15.31,148.48,148.41,6.1117]
[1720999183742,15.31,148.47,148.42,15.31]
[1720999184037,15.31,148.46,148.42,15.31]
[1720999184233,15.31,148.47,148.42,15.31]
[1720999184614,15.31,148.46,148.41,15.31]
[1720999186026,15.31,148.46,148.37,51.426]
[1720999186334,15.31,148.43,148.37,6.426]
[1720999186518,15.31,148.42,148.37,15.31]
[1720999187527,15.31,148.41,148.33,6.3678]
[1720999187748,15.31,148.4,148.35,15.31]
[1720999188047,15.31,148.43,148.38,15.31]
[1720999188243,15.31,148.43,148.33,67.6078]
[1720999188413,15.31,148.41,148.37,15.31]
[1720999188611,15.31,148.42,148.37,15.31]
[1720999189838,15.31,148.41,148.37,15.31]
[1720999192744,15.31,148.41,148.33,6.3678]
[1720999192949,15.31,148.41,148.34,45.0]
[1720999193147,15.31,148.41,148.36,15.31]
[1720999193724,15.31,148.41,148.37,15.31]
[1720999194377,15.31,148.42,148.37,15.31]
[1720999195518,15.31,148.42,148.34,45.0]
[1720999195722,15.31,148.41,148.34,45.0]
[1720999195954,15.298,148.44,148.33,6.3678]
[1720999196133,15.31,148.38,148.33,6.3678]
[1720999196526,15.31,148.38,148.33,21.6778]
[1720999197234,15.31,148.38,148.33,15.31]
[1720999197840,15.31,148.38,148.34,15.31]
[1720999198460,6.7382,148.41,148.34,15.31]
[1720999198635,15.31,148.38,148.34,15.31]
[1720999198837,6.7377,148.42,148.34,15.31]
[1720999199040,15.31,148.39,148.34,15.31]
[1720999199839,51.7371,148.43,148.35,16.65786107]
[1720999200052,15.31,148.39,148.35,15.31]
[1720999200534,15.31,148.4,148.32,17.46330101]
[1720999200738,6.7378,148.42,148.33,45.0]
[1720999200952,15.31,148.38,148.32,16.1154]
[1720999201254,15.31,148.38,148.33,15.31]
[1720999201437,15.31,148.39,148.34,16.6579872]
[1720999201637,15.31,148.4,148.35,15.31]
[1720999201867,15.31,148.39,148.34,15.31]
[1720999202048,15.31,148.39,148.35,1.34800058]
[1720999202362,15.31,148.4,148.35,15.31]
[1720999203157,15.31,148.4,148.36,1.34783005]
[1720999203339,22.0348,148.44,148.37,15.31]
[1720999203535,15.31,148.42,148.37,15.31]
[1720999203738,22.0348,148.44,148.38,1.34767782]
[1720999203938,15.31,148.42,148.37,15.31]
[1720999204458,15.31,148.42,148.34,6.2643]
[1720999204657,15.31,148.41,148.36,15.31]
[1720999204967,15.31,148.42,148.37,15.31]
[1720999205135,15.31,148.41,148.35,45.0]
[1720999205531,15.31,148.41,148.36,15.31]
[1720999205734,15.31,148.42,148.37,15.31]
[1720999207271,15.298,148.44,148.37,15.31]
[1720999207470,12.9748,148.46,148.38,15.31]
[1720999207643,15.31,148.43,148.38,15.31]
[1720999208140,6.7358,148.46,148.38,15.31]
[1720999208336,6.7358,148.46,148.39,15.31]
[1720999208337,15.31,148.44,148.39,15.31]
[1720999209397,15.3566,148.48,148.39,15.31]
[1720999209532,15.31,148.45,148.4,16.65746078]
[1720999209735,22.0918,148.48,148.4,16.65746078]
[1720999209736,15.31,148.47,148.42,15.31]
[1720999210353,15.31,148.47,148.39,6.0299]
[1720999210560,15.31,148.46,148.41,15.31]
[1720999210857,15.31,148.47,148.42,15.31]
[1720999211239,15.31,148.47,148.43,15.31]
[1720999211445,30.6666,148.48,148.43,15.31]
[1720999211643,15.3566,148.48,148.43,15.31]
[1720999211840,0.8453082,148.49,148.43,15.31]
[1720999212043,15.31,148.48,148.43,15.31]
[1720999212441,15.31,148.48,148.39,6.0299]
[1720999212639,15.31,148.47,148.42,15.31]
[1720999212852,15.31,148.48,148.43,16.65717986]
[1720999213946,15.31,148.48,148.43,15.31]
[1720999215850,22.0457,148.47,148.4,45.0]
[1720999216167,15.31,148.46,148.41,15.31]
[1720999216379,15.31,148.45,148.39,6.0299]
[1720999216551,15.31,148.45,148.4,15.31]
[1720999216749,15.31,148.46,148.41,15.31]
[1720999216960,6.7365,148.45,148.37,16.5398]
[1720999217163,6.7365,148.45,148.39,15.31]
[1720999217368,15.31,148.45,148.4,15.31]
[1720999217858,15.31,148.44,148.4,15.31]
[1720999218254,16.0224,148.46,148.4,15.31]
[1720999218563,15.31,148.45,148.4,15.31]
[1720999218759,15.31,148.45,148.37,16.5398]
[1720999218972,22.7582,148.46,148.37,16.5398]
[1720999218973,30.0,148.43,148.41,15.31]
[1720999219858,15.31,148.46,148.41,15.31]
[1720999220457,15.31,148.47,148.37,16.5398]
[1720999220648,7.5798082,148.49,148.43,15.31]
[1720999220847,15.31,148.47,148.42,15.31]
[1720999221073,15.31,148.48,148.43,16.65729472]
[1720999221282,22.0449,148.48,148.39,1.34725161]
[1720999221579,15.31,148.47,148.43,15.31]
[1720999222164,15.31,148.47,148.38,45.0]
[1720999222491,15.31,148.47,148.42,15.31]
[1720999222855,15.31,148.47,148.38,45.0]
[1720999223171,15.31,148.46,148.41,15.31]
[1720999223868,15.31,148.45,148.4,15.31]
[1720999224411,15.31,148.46,148.41,15.31]
[1720999224754,7.5801082,148.49,148.41,15.31]
[1720999224960,7.5801082,148.49,148.42,15.31]
[1720999225275,15.31,148.47,148.43,15.31]
[1720999225476,30.0,148.44,148.43,15.31]
[1720999226287,15.31,148.47,148.43,15.31]
[1720999226975,0.8453082,148.49,148.4,16.65739895]
[1720999227189,0.8453082,148.49,148.44,15.31]
[1720999227353,16.1553082,148.49,148.44,15.31]
[1720999227555,16.1553082,148.49,148.45,1.34709811]
[1720999227754,16.1553082,148.49,148.44,15.31]
[1720999227956,16.1553082,148.49,148.41,16.4835]
[1720999227957,16.1553082,148.49,148.41,6.4835]
[1720999228185,15.31,148.48,148.43,15.31]
[1720999228505,15.31,148.48,148.41,6.4835]
[1720999228675,15.31,148.47,148.41,6.4835]
[1720999228883,6.7355,148.47,148.38,7.04284602]
[1720999229196,15.31,148.45,148.4,15.31]
[1720999229365,6.735,148.48,148.38,7.04284602]
[1720999229689,15.31,148.45,148.4,15.31]
[1720999229991,7.5798082,148.49,148.43,6.0513]
[1720999230200,0.8453082,148.49,148.45,15.31]
[1720999230992,16.1553082,148.49,148.44,15.31]
[1720999231992,15.31,148.48,148.43,15.31]
[1720999232371,0.8453082,148.49,148.42,15.0629]
[1720999232594,16.1553082,148.49,148.44,15.31]
[1720999232894,15.31,148.48,148.44,15.31]
[1720999233470,16.1553082,148.49,148.44,15.31]
[1720999234290,0.8453082,148.49,148.42,25.0629]
[1720999235191,0.8453082,148.49,148.42,15.0629]
[1720999237893,0.8453082,148.49,148.4,16.6341]
[1720999238188,0.8453082,148.49,148.41,66.34713973]
[1720999238397,0.8453082,148.49,148.41,65.0]
[1720999239577,0.8453082,148.49,148.43,10.0]
[1720999239773,0.8453082,148.49,148.44,45.0]
[1720999240913,0.8453082,148.49,148.42,30.55]
[1720999241071,0.8453082,148.49,148.41,20.0]
[1720999241275,0.8453082,148.49,148.42,45.0]
[1720999242703,0.8453082,148.49,148.43,1.34688215]
[1720999242883,0.8453082,148.49,148.43,31.34688215]
[1720999243076,0.8453082,148.49,148.44,45.0]
[1720999243500,0.8453082,148.49,148.45,1.34684726]
[1720999243701,0.8453082,148.49,148.46,1.34684681]
[1720999244178,0.8453082,148.49,148.47,41.657]
[1720999244498,22.2733,148.6,148.48,66.34637193]
[1720999244683,6.9302,148.59,148.48,65.0]
[1720999244878,0.2,148.59,148.49,1.3465185]
[1720999245303,0.2,148.59,148.49,45.0]
[1720999245992,6.9302,148.59,148.48,20.0]
[1720999246772,0.2,148.59,148.48,20.0]
[1720999247078,0.2,148.59,148.48,40.26]
[1720999247281,0.2,148.59,148.5,50.55]
[1720999247484,0.2,148.59,148.51,65.0]
[1720999247697,0.2,148.59,148.52,1.34602623]
[1720999248301,0.2,148.59,148.51,65.0]
[1720999250584,0.2,148.59,148.51,20.0]
[1720999250797,0.2,148.59,148.52,1.34621209]
[1720999251786,16.0636,148.58,148.52,1.34621209]
[1720999251986,16.0636,148.58,148.51,20.0]
[1720999252203,16.0636,148.58,148.5,30.55]
[1720999252403,16.0636,148.58,148.47,52.207]
[1720999252604,6.7309,148.57,148.47,36.552]
[1720999252786,16.0636,148.58,148.47,30.55]
[1720999252987,6.731,148.57,148.44,57.59226161]
[1720999253284,51.731,148.57,148.44,37.59226161]
[1720999253485,51.731,148.57,148.44,7.04226161]
[1720999253682,53.2604,148.55,148.44,7.04226161]
[1720999254288,6.7322,148.54,148.44,7.04226161]
[1720999254486,46.5286,148.55,148.45,1.34696191]
[1720999254487,53.2604,148.55,148.45,1.34696191]
[1720999254687,45.0,148.54,148.45,1.34696191]
[1720999254996,46.5286,148.55,148.44,7.04226161]
[1720999255608,15.9786,148.55,148.44,7.04226161]
[1720999256093,15.9786,148.55,148.45,45.0]
[1720999256521,15.9786,148.55,148.46,1.34665658]
[1720999256705,15.9786,148.55,148.45,45.0]
[1720999257223,22.7107,148.55,148.45,45.0]
[1720999257524,15.9786,148.55,148.45,45.0]
[1720999257912,22.7103,148.55,148.45,45.0]
[1720999258215,15.9786,148.55,148.46,1.34686039]
[1720999258597,15.9786,148.55,148.45,45.0]
[1720999259110,6.7325,148.54,148.45,45.0]
[1720999259431,15.9786,148.55,148.45,45.0]
[1720999259609,22.7104,148.55,148.45,45.0]
[1720999259807,22.7104,148.55,148.46,1.34685876]
[1720999260113,15.9786,148.55,148.46,1.34685876]
[1720999261000,6.7326,148.53,148.46,1.34685876]
[1720999261312,6.7333,148.52,148.44,7.04637967]
[1720999261507,46.5286,148.55,148.44,7.04637967]
[1720999261700,6.7332,148.52,148.44,7.04637967]
[1720999262596,6.7336,148.51,148.44,7.04637967]
[1720999262806,6.7331,148.52,148.44,7.04637967]
[1720999262999,6.7322,148.54,148.45,46.34696879]
[1720999263318,15.9786,148.55,148.46,1.34686076]
[1720999263989,0.2,148.59,148.49,30.55]
[1720999263990,15.4544,148.59,148.49,30.55]
[1720999264191,15.4544,148.59,148.5,1.34644248]
[1720999264418,15.4544,148.59,148.5,46.34644248]
[1720999264990,15.4544,148.59,148.51,20.0]
[1720999265195,0.2,148.59,148.52,1.3462424]
[1720999265410,0.2,148.59,148.52,46.3462424]
[1720999265912,0.2,148.59,148.52,1.3462424]
[1720999267800,0.2,148.59,148.53,1.34610129]
[1720999268004,2.90715014,148.64,148.53,105.55]
[1720999268399,2.90715014,148.64,148.54,1.34580372]
[1720999268606,2.40715014,148.64,148.53,105.55]
[1720999273002,2.40715014,148.64,148.54,1.34581859]
[1720999273209,2.40715014,148.64,148.55,1.34574179]
[1720999273720,2.40715014,148.64,148.53,105.55]
[1720999275604,2.40715014,148.64,148.53,50.55]
[1720999275806,2.40715014,148.64,148.53,60.55]
[1720999276405,18.18195014,148.64,148.53,20.0]
[1720999277123,18.18195014,148.64,148.53,30.0]
[1720999277800,18.18195014,148.64,148.54,45.0]
[1720999278202,24.90955014,148.64,148.54,45.0]
[1720999279010,18.18195014,148.64,148.53,20.0]
[1720999280135,2.40715014,148.64,148.54,1.34593856]
[1720999280311,2.40715014,148.64,148.55,1.34593794]
[1720999280507,2.40715014,148.64,148.53,30.0]
[1720999280832,2.40715014,148.64,148.53,20.0]
[1720999281330,9.13485014,148.64,148.53,20.0]
[1720999281824,2.40715014,148.64,148.53,20.0]
[1720999283128,8.91165014,148.64,148.53,20.0]
[1720999283331,8.91165014,148.64,148.52,22.1094]
[1720999283534,6.7281,148.63,148.52,22.1094]
[1720999284809,8.91165014,148.64,148.53,1.34617787]
[1720999285124,15.63955014,148.64,148.53,1.34617787]
[1720999285531,6.7281,148.63,148.53,1.34617787]
[1720999285709,6.7281,148.63,148.52,22.1094]
[1720999287030,8.91165014,148.64,148.52,22.1094]
[1720999287031,16.5785,148.61,148.52,22.1094]
[1720999287910,23.3076,148.61,148.52,22.1094]
[1720999288428,23.3076,148.61,148.5,7.04120135]
[1720999288613,23.3076,148.61,148.51,20.0]
[1720999288814,16.5785,148.61,148.5,7.04120135]
[1720999289016,45.0,148.6,148.5,7.04120135]
[1720999289330,30.55,148.59,148.5,7.04120135]
[1720999290527,16.5785,148.61,148.5,7.04120135]
[1720999290928,23.3075,148.61,148.5,7.04120135]
[1720999292234,6.7296,148.6,148.51,1.34636401]
[1720999292422,6.7296,148.6,148.5,7.04120135]
[1720999292628,6.7299,148.59,148.5,7.04120135]
[1720999292827,16.5785,148.61,148.5,7.04120135]
[1720999293022,6.7313,148.56,148.48,6.1918]
[1720999293326,6.7318,148.55,148.49,7.04510816]
[1720999293524,22.8876,148.55,148.49,7.04510816]
[1720999294733,6.7323,148.54,148.49,7.04510816]
[1720999295322,16.1558,148.55,148.41,21.9707]
[1720999295519,6.7332,148.52,148.45,7.047111]
[1720999295716,6.7336,148.51,148.41,21.9707]
[1720999295919,45.0,148.54,148.41,21.9707]
[1720999296120,51.7326,148.54,148.44,7.04736337]
[1720999296429,6.7328,148.53,148.44,7.04693148]
[1720999297719,6.7328,148.53,148.44,4.04693148]
[1720999297925,6.7328,148.53,148.41,21.9707]
[1720999298132,45.0,148.52,148.41,21.9707]
[1720999298326,45.0,148.52,148.41,29.01760103]
[1720999299427,6.7328,148.53,148.42,45.0]
[1720999299844,6.7331,148.52,148.42,45.0]
[1720999300146,6.734,148.5,148.41,21.9707]
[1720999300344,6.7336,148.51,148.41,21.9707]
[1720999300530,45.0,148.5,148.41,21.9707]
[1720999300940,45.0,148.5,148.41,29.0184203]
[1720999302346,51.7343,148.5,148.41,29.0184203]
[1720999302526,6.7345,148.49,148.41,29.0184203]
[1720999303735,51.7341,148.5,148.41,29.0184203]
[1720999304048,6.7345,148.49,148.41,21.9707]
[1720999304223,45.0,148.48,148.41,21.9707]
[1720999305246,45.0,148.48,148.41,6.6243]
[1720999307242,15.9518,148.49,148.41,6.6243]
[1720999308355,15.9518,148.49,148.41,7.97176548]
[1720999308744,15.9518,148.49,148.41,6.6243]
[1720999309957,16.8301,148.55,148.41,6.6243]
[1720999309958,6.0468,148.6,148.43,6.4515]
[1720999310251,15.3534,148.56,148.46,30.55]
[1720999310464,6.7299,148.59,148.48,21.7004]
[1720999310657,6.7299,148.59,148.49,1.34657264]
[1720999311848,24.18944534,148.6,148.49,1.34657264]
[1720999312171,15.3534,148.6,148.49,31.89657264]
[1720999312339,22.083,148.6,148.49,31.89657264]
[1720999312747,22.083,148.6,148.5,45.0]
[1720999313060,6.73,148.59,148.49,30.55]
[1720999314354,6.7304,148.58,148.49,30.55]
[1720999314856,6.73,148.59,148.49,30.55]
[1720999315755,6.7303,148.58,148.49,30.55]
[1720999316051,6.7309,148.57,148.49,30.55]
[1720999316253,15.3534,148.6,148.48,21.7004]
[1720999316478,6.7327,148.53,148.48,21.7004]
[1720999316834,16.8264,148.58,148.48,6.4515]
[1720999317075,45.0,148.57,148.48,6.4515]
[1720999317575,6.7332,148.52,148.45,22.0748]
[1720999318967,6.7332,148.52,148.45,6.6547]
[1720999319169,45.0,148.51,148.45,6.6547]
[1720999319760,45.0,148.51,148.43,7.04728609]
[1720999319959,6.7336,148.51,148.42,15.4817]
[1720999320154,51.734,148.5,148.42,15.4817]
[1720999320352,6.7336,148.51,148.42,15.4817]
[1720999320651,45.0,148.5,148.42,15.4817]
[1720999321554,16.3014,148.53,148.42,15.4817]
[1720999321749,6.7337,148.51,148.42,15.4817]
[1720999322066,45.0,148.5,148.42,15.4817]
[1720999322439,51.7337,148.51,148.42,15.4817]
[1720999323547,45.0,148.51,148.43,1.34731777]
[1720999323752,46.8514,148.53,148.42,15.4817]
[1720999323753,45.0,148.52,148.42,15.4817]
[1720999323952,45.0,148.52,148.43,1.34725476]
[1720999324668,51.7331,148.52,148.42,16.82894541]
[1720999324843,51.7331,148.52,148.42,15.4817]
[1720999325049,45.0,148.52,148.43,1.34721914]
[1720999325472,51.7332,148.52,148.43,1.34721914]
[1720999326970,45.0,148.52,148.43,1.34721914]
[1720999327169,6.7342,148.5,148.43,1.34721914]
[1720999327758,6.7336,148.51,148.43,1.34721914]
[1720999328870,51.7332,148.52,148.43,1.34721914]
[1720999329252,45.0,148.52,148.43,1.34721914]
[1720999330164,6.7322,148.54,148.43,1.34721914]
[1720999330367,6.7325,148.54,148.44,1.34703467]
[1720999331075,6.7327,148.53,148.44,1.34703467]
[1720999331955,6.7324,148.54,148.43,81.5966]
[1720999332156,35.30329768,148.57,148.43,81.5966]
[1720999332351,6.7332,148.52,148.43,51.0466]
[1720999332573,6.7321,148.54,148.44,1.34703543]
[1720999332872,6.7322,148.54,148.43,51.0466]
[1720999333065,6.7327,148.53,148.43,51.0466]
[1720999333657,6.7331,148.52,148.43,6.0466]
[1720999333854,6.7331,148.52,148.44,1.34708096]
[1720999334359,6.7331,148.52,148.43,6.0466]